bitfinex-derivatives/quotes_BTCF0:USTF0_20251115
["timestamp","ask_amount","ask_price","bid_price","bid_amount"]
[1763179399435,0.11052453,96407.0,96406.0,0.00025932]
[1763179403838,0.47132453,96407.0,96398.0,0.00015558]
[1763179404029,0.3608,96399.0,96398.0,0.00015558]
[1763179404433,0.47944179,96399.0,96398.0,0.00015558]
[1763179406138,0.47944179,96399.0,96398.0,0.04440558]
[1763179408451,0.47944179,96399.0,96398.0,0.00015558]
[1763179409450,0.47944179,96399.0,96383.0,0.03562]
[1763179409451,0.52817551,96399.0,96383.0,0.03562]
[1763179409653,0.3608,96384.0,96383.0,0.03562]
[1763179409952,0.47439445,96384.0,96383.0,0.05782]
[1763179410548,0.47439445,96384.0,96383.0,0.05882]
[1763179410749,0.47439445,96384.0,96383.0,0.05982]
[1763179412752,0.47439445,96384.0,96383.0,0.05882]
[1763179413057,0.11359445,96384.0,96383.0,0.05882]
[1763179413256,0.11359445,96384.0,96383.0,0.05782]
[1763179414557,0.11359445,96384.0,96383.0,0.41862]
[1763179418163,0.3608,96399.0,96398.0,0.04475]
[1763179418457,0.47031921,96399.0,96398.0,0.04475]
[1763179418658,0.10951921,96399.0,96398.0,0.04475]
[1763179419057,0.10951921,96407.0,96404.0,0.01294]
[1763179419259,0.52692952,96408.0,96404.0,0.01294]
[1763179419260,0.02409259,96406.0,96404.0,0.01294]
[1763179419558,0.44394255,96408.0,96400.0,0.00219803]
[1763179419559,0.14284713,96405.0,96400.0,0.02474803]
[1763179419756,0.02409259,96404.0,96400.0,0.02474803]
[1763179420152,0.14284713,96403.0,96400.0,0.02474803]
[1763179420359,0.02409259,96402.0,96400.0,0.02474803]
[1763179420557,0.02409259,96402.0,96400.0,0.04694803]
[1763179420755,0.1396351,96401.0,96400.0,0.04694803]
[1763179421159,0.02409259,96401.0,96400.0,0.04694803]
[1763179421462,0.11293173,96401.0,96400.0,0.04694803]
[1763179421660,0.13702432,96401.0,96400.0,0.04694803]
[1763179421858,0.02409259,96401.0,96400.0,0.04694803]
[1763179422159,0.11293173,96401.0,96400.0,0.04694803]
[1763179422360,0.13702432,96401.0,96400.0,0.04694803]
[1763179422559,0.02409259,96401.0,96400.0,0.04694803]
[1763179422759,0.13571679,96401.0,96400.0,0.04694803]
[1763179423151,0.13571679,96401.0,96400.0,0.00219803]
[1763179424063,0.13571679,96401.0,96396.0,0.00015558]
[1763179424359,0.02409259,96400.0,96396.0,0.00015558]
[1763179424560,0.3608,96398.0,96396.0,0.00015558]
[1763179424764,0.02409259,96397.0,96396.0,0.00015558]
[1763179425063,0.14419481,96397.0,96396.0,0.00015558]
[1763179429860,0.14419481,96397.0,96396.0,0.02270558]
[1763179430658,0.14419481,96397.0,96396.0,0.00015558]
[1763179430958,0.14419481,96397.0,96383.0,0.05782]
[1763179431160,0.3608,96388.0,96383.0,0.05782]
[1763179431358,0.02409259,96387.0,96383.0,0.05782]
[1763179431563,0.13972732,96387.0,96383.0,0.05782]
[1763179431863,0.02409259,96386.0,96383.0,0.05782]
[1763179432065,0.02409259,96386.0,96380.0,0.00219803]
[1763179432261,0.10875295,96385.0,96380.0,0.04694803]
[1763179432462,0.02409259,96384.0,96380.0,0.04694803]
[1763179432765,0.10875295,96383.0,96380.0,0.04694803]
[1763179432965,0.02409259,96382.0,96380.0,0.04694803]
[1763179433465,0.11576071,96381.0,96380.0,0.04694803]
[1763179433667,0.1398533,96381.0,96380.0,0.04694803]
[1763179433966,0.02409259,96381.0,96380.0,0.04694803]
[1763179434168,0.11576071,96387.0,96384.0,0.03549]
[1763179434469,0.13820908,96386.0,96384.0,0.03549]
[1763179434662,0.02413186,96385.0,96384.0,0.03549]
[1763179434962,0.13820908,96385.0,96384.0,0.03549]
[1763179437166,0.49900908,96385.0,96384.0,0.03549]
[1763179437560,0.49900908,96385.0,96384.0,0.05769]
[1763179441658,0.49900908,96385.0,96384.0,0.01294]
[1763179441863,0.49900908,96385.0,96384.0,0.01288]
[1763179442064,0.49900908,96385.0,96384.0,0.05685]
[1763179442563,0.49900908,96385.0,96384.0,0.03442]
[1763179445462,0.49900908,96385.0,96384.0,0.01288]
[1763179446758,0.49900908,96385.0,96380.0,0.02373803]
[1763179446962,0.02413186,96384.0,96376.0,0.01294]
[1763179447163,0.3608,96377.0,96376.0,0.03448]
[1763179447359,0.38493186,96377.0,96376.0,0.03448]
[1763179447564,0.50518337,96377.0,96376.0,0.03448]
[1763179448063,0.50518337,96377.0,96376.0,0.001]
[1763179448570,0.50518337,96377.0,96375.0,0.00015558]
[1763179448766,0.02313186,96376.0,96375.0,0.00015558]
[1763179449273,0.13415262,96376.0,96375.0,0.00015558]
[1763179450763,0.13415262,96376.0,96375.0,0.00115558]
[1763179454066,0.13415262,96376.0,96375.0,0.02236558]
[1763179454472,0.13415262,96376.0,96375.0,0.04356558]
[1763179454869,0.13415262,96376.0,96375.0,0.00115558]
[1763179455175,0.13415262,96376.0,96366.0,0.02146943]
[1763179455375,0.3608,96367.0,96366.0,0.02146943]
[1763179455771,0.47315571,96367.0,96366.0,0.02146943]
[1763179456270,0.47315571,96367.0,96366.0,0.00025943]
[1763179457376,0.47315571,96367.0,96360.0,0.01288]
[1763179458669,0.47315571,96367.0,96364.0,0.02133475]
[1763179459376,0.47315571,96367.0,96366.0,0.05632]
[1763179460469,0.47315571,96367.0,96366.0,0.01391]
[1763179460669,0.47315571,96367.0,96364.0,0.00012475]
[1763179460670,0.49728785,96367.0,96364.0,0.00012475]
[1763179460976,0.02413214,96366.0,96364.0,0.00012475]
[1763179461176,0.02413214,96365.0,96364.0,0.02133475]
[1763179461376,0.14402889,96365.0,96364.0,0.02133475]
[1763179461777,0.14402889,96365.0,96364.0,0.04253475]
[1763179467367,0.14402889,96365.0,96364.0,0.02133475]
[1763179468079,0.14502889,96365.0,96364.0,0.00012475]
[1763179468580,0.14402889,96365.0,96364.0,0.02299475]
[1763179468775,0.14502889,96365.0,96364.0,0.04498475]
[1763179470577,0.14502889,96365.0,96364.0,0.00012475]
[1763179481293,0.86662889,96365.0,96364.0,0.00012475]
[1763179483787,0.86662889,96365.0,96357.0,0.04496384]
[1763179483987,0.02413214,96364.0,96357.0,0.00010384]
[1763179484189,0.03727213,96363.0,96357.0,0.00010384]
[1763179484392,0.02413214,96362.0,96357.0,0.00010384]
[1763179484690,0.11071896,96361.0,96357.0,0.00010384]
[1763179484891,0.02413214,96360.0,96357.0,0.00010384]
[1763179485300,0.11063399,96359.0,96357.0,0.00010384]
[1763179485594,0.02413214,96358.0,96357.0,0.00010384]
[1763179486091,0.13953907,96358.0,96357.0,0.00010384]
[1763179487490,0.14053907,96358.0,96357.0,0.00010384]
[1763179488286,0.14053907,96358.0,96357.0,0.04496384]
[1763179490798,0.14053907,96358.0,96357.0,0.00010384]
[1763179490992,0.14053907,96358.0,96357.0,0.02297384]
[1763179491686,0.14053907,96358.0,96357.0,0.00010384]
[1763179492194,0.14053907,96358.0,96357.0,0.02297384]
[1763179492382,0.14053907,96358.0,96357.0,0.04496384]
[1763179493601,0.14053907,96358.0,96357.0,0.00010384]
[1763179494899,0.18919997,96358.0,96357.0,0.00010384]
[1763179495790,0.18919997,96358.0,96357.0,0.02297384]
[1763179499094,0.18919997,96358.0,96357.0,0.04483384]
[1763179503299,0.18919997,96358.0,96357.0,0.02297384]
[1763179504501,0.04554,96346.0,96345.0,0.0133]
[1763179504692,0.04554,96343.0,96342.0,0.05837]
[1763179504896,0.06967214,96343.0,96342.0,0.05837]
[1763179505202,0.1805448,96343.0,96342.0,0.05837]
[1763179506702,0.1805448,96343.0,96340.0,0.00219803]
[1763179506897,0.04554,96321.0,96320.0,0.05827]
[1763179507093,0.36095566,96330.0,96329.0,0.04446]
[1763179507306,0.00015566,96330.0,96329.0,0.04446]
[1763179507602,0.07844818,96330.0,96329.0,0.04446]
[1763179507805,0.07844818,96330.0,96329.0,0.40526]
[1763179515006,0.00015566,96339.0,96330.0,0.00219803]
[1763179515213,0.11077546,96350.0,96338.0,0.3608]
[1763179515510,0.10993583,96349.0,96340.0,0.00219803]
[1763179515708,0.13264583,96349.0,96347.0,0.3608]
[1763179515909,0.10993583,96349.0,96347.0,0.3608]
[1763179516113,0.13264583,96349.0,96347.0,0.3608]
[1763179516302,0.02271,96349.0,96347.0,0.3608]
[1763179516498,0.13381052,96348.0,96347.0,0.3608]
[1763179516904,0.02271,96348.0,96347.0,0.3608]
[1763179517506,0.05828,96352.0,96350.0,0.00219803]
[1763179517809,0.10965796,96351.0,96350.0,0.00219803]
[1763179518011,0.13236796,96351.0,96350.0,0.00219803]
[1763179518603,0.10965796,96351.0,96350.0,0.00219803]
[1763179518910,0.13236796,96351.0,96350.0,0.00219803]
[1763179519211,0.10965796,96351.0,96350.0,0.00219803]
[1763179519408,0.15490796,96351.0,96350.0,0.00219803]
[1763179521006,0.10965796,96351.0,96350.0,0.00219803]
[1763179521208,0.01303,96356.0,96350.0,0.00219803]
[1763179521412,0.01303,96360.0,96355.0,0.3608]
[1763179521413,0.09610083,96360.0,96355.0,0.3608]
[1763179521709,0.1156985,96357.0,96355.0,0.3608]
[1763179522011,0.01303,96360.0,96356.0,0.1497]
[1763179524411,0.03601,96372.0,96355.0,0.4646497]
[1763179524610,0.03601,96372.0,96370.0,0.3608]
[1763179524814,0.11786814,96371.0,96370.0,0.3608]
[1763179525014,0.11786814,96371.0,96370.0,0.36299803]
[1763179525411,0.0133,96378.0,96370.0,0.36299803]
[1763179525615,0.08322649,96380.0,96370.0,0.36299803]
[1763179525817,0.08322649,96380.0,96379.0,0.3608]
[1763179526012,0.00015566,96380.0,96379.0,0.3608]
[1763179526217,0.04540566,96380.0,96379.0,0.3608]
[1763179527214,0.11494282,96380.0,96379.0,0.3608]
[1763179527409,0.16119282,96380.0,96379.0,0.3608]
[1763179530203,0.01335,96372.0,96371.0,0.1497]
[1763179530405,0.05878,96372.0,96371.0,0.1497]
[1763179531514,0.05978,96372.0,96371.0,0.1497]
[1763179533012,0.05878,96372.0,96371.0,0.1497]
[1763179533213,0.05978,96372.0,96371.0,0.1497]
[1763179533615,0.05878,96372.0,96371.0,0.1497]
[1763179533910,0.05978,96372.0,96371.0,0.1497]
[1763179536410,0.04543,96371.0,96370.0,0.36299803]
[1763179536924,0.15998732,96371.0,96370.0,0.00219803]
[1763179537427,0.04543,96362.0,96359.0,0.3608]
[1763179537626,0.04543,96362.0,96360.0,0.00219803]
[1763179537826,0.16357571,96362.0,96360.0,0.00219803]
[1763179538729,0.16357571,96362.0,96359.0,0.3608]
[1763179539724,0.16357571,96362.0,96341.0,0.3608]
[1763179539924,0.16457571,96362.0,96341.0,0.3608]
[1763179540124,0.05878,96342.0,96341.0,0.3608]
[1763179547946,0.17584288,96342.0,96341.0,0.3608]
[1763179548644,0.17584288,96342.0,96333.0,0.1497]
[1763179548645,0.04543,96334.0,96333.0,0.1497]
[1763179549145,0.15658362,96334.0,96333.0,0.1497]
[1763179552845,0.15658362,96334.0,96332.0,0.00015566]
[1763179553051,0.04543,96333.0,96332.0,0.00015566]
[1763179553450,0.1629113,96333.0,96332.0,0.00015566]
[1763179556147,0.5237113,96333.0,96332.0,0.00015566]
[1763179556941,0.04543,96314.0,96313.0,0.1497]
[1763179558552,0.16199159,96314.0,96313.0,0.1497]
[1763179559557,0.16199159,96314.0,96311.0,0.3608]
[1763179559558,0.04404,96312.0,96311.0,0.3608]
[1763179559957,0.15592927,96312.0,96311.0,0.3608]
[1763179560650,0.04255,96305.0,96304.0,0.00026459]
[1763179560851,0.40335,96305.0,96304.0,0.00026459]
[1763179561058,0.51641492,96305.0,96304.0,0.00026459]
[1763179561554,0.51653355,96305.0,96304.0,4.59e-06]
[1763179561764,0.04255,96296.0,96295.0,0.00467312]
[1763179561957,0.04155,96296.0,96295.0,0.00467312]
[1763179562156,0.15749584,96296.0,96295.0,0.00467312]
[1763179563155,0.15749584,96296.0,96295.0,3.12e-06]
[1763179563455,0.15749584,96296.0,96277.0,0.3608]
[1763179563456,0.04255,96287.0,96277.0,0.3608]
[1763179563663,0.04255,96259.0,96258.0,0.3608]
[1763179563858,0.04155,96259.0,96258.0,0.3608]
[1763179564057,0.00015575,96268.0,96260.0,0.00219803]
[1763179564356,0.00015575,96268.0,96267.0,0.3608]
[1763179564553,0.09501658,96270.0,96267.0,0.3608]
[1763179564754,0.01279,96270.0,96267.0,0.3608]
[1763179565761,0.01279,96270.0,96267.0,0.3618]
[1763179566453,0.0341,96270.0,96267.0,0.3618]
[1763179566660,0.04255,96268.0,96267.0,0.3618]
[1763179567063,0.04255,96268.0,96267.0,0.3608]
[1763179567262,0.04255,96268.0,96267.0,0.002]
[1763179567560,0.15304207,96268.0,96267.0,0.002]
[1763179580669,0.04447,96260.0,96259.0,0.00015575]
[1763179580968,0.51550538,96260.0,96259.0,0.00015575]
[1763179582672,0.51550538,96260.0,96259.0,0.00115575]
[1763179582871,0.51550538,96260.0,96259.0,0.00215575]
[1763179583962,0.51550538,96260.0,96244.0,0.3608]
[1763179584168,0.0442,96256.0,96244.0,0.3608]
[1763179584571,0.05714,96252.0,96244.0,0.3608]
[1763179584970,0.16765873,96252.0,96244.0,0.3608]
[1763179585763,0.16565873,96252.0,96244.0,0.3608]
[1763179589569,0.18999462,96252.0,96244.0,0.3608]
[1763179591671,0.55079462,96252.0,96251.0,3.42e-06]
[1763179598982,0.55079462,96252.0,96236.0,0.3608]
[1763179598983,0.04434,96247.0,96236.0,0.3608]
[1763179599174,0.06867589,96247.0,96236.0,0.3608]
[1763179599380,0.18046407,96247.0,96236.0,0.3608]
[1763179601587,0.04434,96237.0,96236.0,0.3608]
[1763179602079,0.05815,96230.0,96229.0,0.1497]
[1763179602282,0.04434,96229.0,96228.0,0.3608]
[1763179602477,0.04434,96216.0,96215.0,0.365477]
[1763179602672,0.04334,96216.0,96215.0,0.004677]
[1763179602881,0.15318433,96216.0,96215.0,0.004677]
[1763179603276,0.19127687,96216.0,96215.0,0.004677]
[1763179603794,0.04434,96207.0,96206.0,0.36105986]
[1763179603980,0.06871397,96207.0,96206.0,0.00025986]
[1763179604180,0.18143261,96207.0,96206.0,0.00025986]
[1763179604382,0.05815,96201.0,96195.0,0.3608]
[1763179604582,0.05615,96201.0,96195.0,0.3608]
[1763179604885,0.17036526,96201.0,96195.0,0.3608]
[1763179606783,0.17036526,96201.0,96200.0,0.00231531]
[1763179607386,0.12802526,96201.0,96200.0,0.00231531]
[1763179607688,0.15099526,96201.0,96200.0,0.00231531]
[1763179607886,0.17236526,96201.0,96200.0,0.00231531]
[1763179614993,0.05815,96201.0,96200.0,0.00231531]
[1763179615390,0.01381,96201.0,96200.0,0.00231531]
[1763179616400,0.03678,96201.0,96200.0,0.00231531]
[1763179616597,0.01381,96201.0,96200.0,0.00231531]
[1763179617293,0.05815,96201.0,96200.0,0.00231531]
[1763179617792,0.03678,96201.0,96200.0,0.00231531]
[1763179618499,0.01381,96201.0,96200.0,0.00231531]
[1763179620097,0.05871,96201.0,96200.0,0.00231531]
[1763179620293,9.335e-05,96207.0,96200.0,0.15201531]
[1763179620495,0.03564,96216.0,96207.0,0.1040102]
[1763179620692,0.03564,96216.0,96215.0,0.3608]
[1763179620888,0.01381,96216.0,96215.0,0.3608]
[1763179621092,0.03564,96216.0,96215.0,0.3608]
[1763179621293,0.0057088,96216.0,96215.0,0.3608]
[1763179621600,0.00580261,96216.0,96215.0,0.3608]
[1763179622687,0.00580261,96216.0,96215.0,0.5105]
[1763179624602,0.00015583,96225.0,96215.0,0.5105]
[1763179624902,0.00015583,96225.0,96224.0,0.3608]
[1763179627493,0.02198583,96225.0,96224.0,0.3608]
[1763179627701,0.04505583,96225.0,96224.0,0.3608]
[1763179628300,0.02198583,96225.0,96224.0,0.3608]
[1763179629206,0.02198583,96225.0,96224.0,0.5105]
[1763179630099,0.04505583,96225.0,96224.0,0.5105]
[1763179632411,0.02198583,96225.0,96224.0,0.5105]
[1763179632707,0.04310583,96225.0,96224.0,0.5105]
[1763179636308,0.04410583,96225.0,96224.0,0.5105]
[1763179636709,0.04310583,96225.0,96224.0,0.5105]
[1763179637711,0.15508069,96225.0,96224.0,0.5105]
[1763179637914,0.15608069,96225.0,96224.0,0.5105]
[1763179641013,0.15608069,96225.0,96224.0,0.3608]
[1763179641616,0.15608069,96225.0,96224.0,0.19880495]
[1763179641919,0.47393069,96225.0,96200.0,0.04356728]
[1763179642115,0.0427,96213.0,96212.0,0.04345]
[1763179642524,0.16167889,96213.0,96212.0,0.04345]
[1763179642727,0.08328648,96222.0,96221.0,0.04345]
[1763179642728,0.12598648,96222.0,96221.0,0.04345]
[1763179643017,0.36195583,96225.0,96224.0,0.04345]
[1763179643018,0.38253583,96225.0,96224.0,0.04345]
[1763179643222,0.36095583,96225.0,96224.0,0.04345]
[1763179643422,0.11205746,96225.0,96224.0,0.04345]
[1763179643623,0.13363746,96225.0,96224.0,0.04345]
[1763179644127,0.00015583,96225.0,96224.0,0.04345]
[1763179644426,0.00115583,96225.0,96224.0,0.04345]
[1763179645626,0.00015583,96225.0,96224.0,0.04345]
[1763179645819,0.00115583,96225.0,96224.0,0.04345]
[1763179646726,0.00115583,96225.0,96224.0,0.19315]
[1763179647224,0.04295975,96246.0,96245.0,0.04345]
[1763179647625,0.162905,96246.0,96245.0,0.04345]
[1763179648426,0.163905,96246.0,96245.0,0.04345]
[1763179649026,0.165905,96246.0,96245.0,0.04345]
[1763179652323,0.02483975,96246.0,96245.0,0.04345]
[1763179653627,0.02383975,96246.0,96245.0,0.04345]
[1763179655131,0.00225975,96246.0,96245.0,0.04345]
[1763179657122,0.00015591,96255.0,96254.0,0.04517]
[1763179657729,0.04331591,96255.0,96254.0,0.04517]
[1763179658125,0.02273591,96255.0,96254.0,0.04517]
[1763179658630,0.02173591,96255.0,96254.0,0.04517]
[1763179658829,0.02273591,96255.0,96254.0,0.04517]
[1763179659931,0.00115591,96255.0,96254.0,0.04517]
[1763179660432,0.00215591,96255.0,96254.0,0.04517]
[1763179660831,0.00115591,96255.0,96254.0,0.04517]
[1763179661232,0.00215591,96255.0,96254.0,0.04517]
[1763179661433,0.00115591,96255.0,96254.0,0.04517]
[1763179661639,0.00215591,96255.0,96254.0,0.04517]
[1763179663437,0.40396,96269.0,96268.0,0.04517]
[1763179663837,0.38238,96269.0,96268.0,0.04517]
[1763179664239,0.04316,96269.0,96268.0,0.04517]
[1763179664743,0.04416,96269.0,96268.0,0.04517]
[1763179665242,0.04316,96269.0,96268.0,0.04517]
[1763179665436,0.04416,96269.0,96268.0,0.04517]
[1763179666040,0.04516,96269.0,96268.0,0.04517]
[1763179666637,0.04416,96269.0,96268.0,0.04517]
[1763179666946,0.04516,96269.0,96268.0,0.04517]
[1763179670144,0.04316,96262.0,96261.0,0.1497]
[1763179670642,0.15972847,96262.0,96261.0,0.1497]
[1763179671545,0.16072847,96262.0,96261.0,0.1497]
[1763179672247,0.16172847,96262.0,96261.0,0.1497]
[1763179673349,0.04316,96260.0,96259.0,0.02243583]
[1763179673752,0.16226456,96260.0,96259.0,0.02243583]
[1763179674548,0.16326456,96260.0,96259.0,0.00015583]
[1763179675050,0.52406456,96260.0,96259.0,0.00015583]
[1763179675845,0.04316,96251.0,96250.0,0.04736803]
[1763179676254,0.1518902,96251.0,96250.0,0.04736803]
[1763179679042,0.1087302,96251.0,96250.0,0.04736803]
[1763179679250,0.5272217,96260.0,96259.0,0.04545]
[1763179679555,0.52211722,96260.0,96259.0,0.04545]
[1763179680056,0.16131722,96260.0,96259.0,0.04545]
[1763179680759,0.16231722,96260.0,96259.0,0.04545]
[1763179680957,0.11920722,96260.0,96259.0,0.04545]
[1763179681454,0.16331722,96260.0,96259.0,0.04545]
[1763179682759,0.16331722,96260.0,96259.0,0.02326]
[1763179683662,0.04311,96253.0,96252.0,0.05913]
[1763179684055,0.15367562,96253.0,96252.0,0.05913]
[1763179685157,0.15467562,96253.0,96252.0,0.05913]
[1763179694760,0.15467562,96253.0,96252.0,0.02326]
[1763179695158,0.04316,96252.0,96251.0,0.1497]
[1763179695553,0.16151002,96252.0,96251.0,0.17268]
[1763179695755,0.04316,96251.0,96250.0,0.00219803]
[1763179696166,0.16313562,96251.0,96250.0,0.00219803]
[1763179696567,0.04316,96242.0,96241.0,0.04530583]
[1763179697066,0.16313562,96242.0,96241.0,0.04530583]
[1763179698669,0.16313562,96242.0,96241.0,0.00015583]
[1763179699264,0.16413562,96242.0,96241.0,0.00015583]
[1763179699568,0.04316,96236.0,96235.0,0.05883]
[1763179699966,0.15189014,96236.0,96235.0,0.05883]
[1763179700466,0.46953014,96236.0,96220.0,0.09781813]
[1763179700671,0.04316,96221.0,96220.0,0.04588266]
[1763179700868,0.04316,96221.0,96220.0,0.05964266]
[1763179701164,0.15732234,96221.0,96220.0,0.05964266]
[1763179704071,0.3608,96228.0,96227.0,0.04515]
[1763179704472,0.49071935,96228.0,96227.0,0.04515]
[1763179704673,0.46913935,96228.0,96227.0,0.04515]
[1763179705371,0.12991935,96228.0,96227.0,0.04515]
[1763179705772,0.15149935,96228.0,96227.0,0.04515]
[1763179706676,0.12991935,96228.0,96227.0,0.04515]
[1763179707078,0.15149935,96228.0,96227.0,0.04515]
[1763179710880,0.15149935,96228.0,96227.0,0.02298]
[1763179711071,0.04316,96221.0,96220.0,0.05687]
[1763179711275,0.04316,96221.0,96220.0,0.05760266]
[1763179711471,0.15225181,96221.0,96220.0,0.05760266]
[1763179713785,0.00219803,96220.0,96206.0,0.04336986]
[1763179714080,0.11325967,96220.0,96219.0,0.04311]
[1763179714283,0.00219803,96220.0,96219.0,0.04311]
[1763179714486,0.11265219,96220.0,96219.0,0.04311]
[1763179716779,0.47345219,96220.0,96219.0,0.04311]
[1763179717685,0.47345219,96220.0,96210.0,0.05699]
[1763179717884,0.69557547,96220.0,96210.0,0.05699]
[1763179718083,0.3608,96211.0,96210.0,0.05699]
[1763179718585,0.4767369,96211.0,96210.0,0.05699]
[1763179718985,0.00219803,96210.0,96206.0,0.02162986]
[1763179719184,0.00219803,96210.0,96206.0,0.00025986]
[1763179719385,0.11994941,96209.0,96206.0,0.00025986]
[1763179724597,0.11994941,96209.0,96206.0,0.02162986]
[1763179725095,0.11994941,96209.0,96208.0,0.03525]
[1763179725406,0.14420517,96209.0,96180.0,0.03525]
[1763179725694,0.11106164,96190.0,96189.0,0.04311]
[1763179725893,0.00219803,96190.0,96189.0,0.04311]
[1763179726094,0.11884086,96190.0,96189.0,0.04311]
[1763179726595,0.11894225,96190.0,96189.0,0.04311]
[1763179728390,0.11894225,96190.0,96186.0,0.01388]
[1763179728391,0.11106164,96200.0,96199.0,0.04311]
[1763179728596,0.00073267,96200.0,96199.0,0.04311]
[1763179728790,0.1125674,96200.0,96199.0,0.04311]
[1763179728997,0.00073267,96200.0,96199.0,0.04311]
[1763179729598,0.47555494,96200.0,96199.0,0.02137]
[1763179729789,0.47555494,96200.0,96199.0,0.04311]
[1763179731099,0.47555494,96200.0,96199.0,0.02137]
[1763179731293,0.47555494,96200.0,96194.0,0.05699]
[1763179731593,0.47555494,96200.0,96190.0,0.00219803]
[1763179731898,0.3608,96191.0,96190.0,0.00219803]
[1763179732295,0.47550309,96191.0,96190.0,0.00219803]
[1763179732799,0.47550309,96191.0,96190.0,0.04530803]
[1763179739696,0.11470309,96191.0,96190.0,0.04530803]
[1763179739997,0.10966519,96199.0,96198.0,0.04397]
[1763179740405,0.36153267,96200.0,96199.0,0.04419]
[1763179740701,0.47824926,96200.0,96199.0,0.04419]
[1763179741796,0.47924926,96200.0,96199.0,0.04419]
[1763179743304,0.11844926,96200.0,96199.0,0.04419]
[1763179747400,0.14349251,96200.0,96199.0,0.04419]
[1763179754505,0.11844926,96200.0,96199.0,0.04419]
[1763179764008,0.11844926,96200.0,96199.0,0.02159]
[1763179764210,0.11844926,96200.0,96198.0,0.01305]
[1763179764407,0.11844926,96200.0,96194.0,0.01364]
[1763179765008,0.11844926,96200.0,96194.0,0.03607]
[1763179765415,0.11844926,96200.0,96194.0,0.05819]
[1763179766303,0.11744926,96200.0,96194.0,0.05819]
[1763179767712,0.11744926,96200.0,96194.0,0.01364]
[1763179768016,0.11744926,96200.0,96190.0,0.05998803]
[1763179768517,0.02507589,96199.0,96190.0,0.05998803]
[1763179768717,0.11744926,96200.0,96190.0,0.05998803]
[1763179768914,0.1146104,96198.0,96190.0,0.05998803]
[1763179769220,0.1146104,96199.0,96190.0,0.05998803]
[1763179769515,0.3608,96193.0,96190.0,0.05998803]
[1763179769910,0.11538864,96192.0,96190.0,0.05998803]
[1763179770713,0.11538864,96192.0,96191.0,0.04474]
[1763179772108,0.11423028,96199.0,96198.0,0.05806]
[1763179772313,0.00073267,96200.0,96199.0,0.04474]
[1763179772613,0.0258359,96200.0,96199.0,0.04474]
[1763179772811,0.00073267,96200.0,96199.0,0.04474]
[1763179773610,0.00173267,96200.0,96199.0,0.04474]
[1763179787221,0.001,96200.0,96199.0,0.04474]
[1763179787425,0.00173267,96200.0,96199.0,0.04474]
[1763179789518,0.11469563,96200.0,96198.0,0.01332]
[1763179790023,0.11469563,96200.0,96198.0,0.0366]
[1763179791118,0.11469563,96200.0,96199.0,0.04474]
[1763179791317,0.11369563,96200.0,96199.0,0.04474]
[1763179792420,0.00073267,96200.0,96199.0,0.04474]
[1763179792625,0.00173267,96200.0,96199.0,0.04474]
[1763179797224,2.67e-06,96200.0,96199.0,0.04474]
[1763179797522,0.00015591,96204.0,96203.0,0.04474]
[1763179798721,0.00115591,96204.0,96203.0,0.04474]
[1763179805223,0.1666837,96220.0,96219.0,0.04299]
[1763179805414,0.3608,96221.0,96220.0,0.04518803]
[1763179805619,0.38305,96221.0,96220.0,0.04518803]
[1763179805822,0.51624085,96221.0,96220.0,0.04518803]
[1763179806630,0.15544085,96221.0,96220.0,0.04518803]
[1763179809825,0.5726437,96229.0,96228.0,0.05576]
[1763179810019,0.40596,96229.0,96228.0,0.05576]
[1763179810219,0.47486489,96229.0,96228.0,0.05576]
[1763179810526,0.3608,96229.0,96228.0,0.05576]
[1763179810926,0.3618,96229.0,96228.0,0.05576]
[1763179811124,0.001,96229.0,96228.0,0.05576]
[1763179811623,0.046,96229.0,96228.0,0.05576]
[1763179811828,0.047,96229.0,96228.0,0.05576]
[1763179812430,0.046,96229.0,96228.0,0.05576]
[1763179812633,0.02425,96229.0,96228.0,0.05576]
[1763179814229,0.047,96229.0,96228.0,0.05576]
[1763179815232,0.002,96229.0,96228.0,0.05576]
[1763179816338,0.001,96229.0,96228.0,0.05576]
[1763179816933,0.04799,96229.0,96228.0,0.02159]
[1763179817428,0.04799,96229.0,96228.0,0.04377]
[1763179820535,0.04799,96229.0,96228.0,0.02159]
[1763179820829,0.04599,96221.0,96220.0,0.40562]
[1763179821132,0.04599,96221.0,96220.0,0.40781803]
[1763179821133,0.15863992,96221.0,96220.0,0.40781803]
[1763179822225,0.04599,96212.0,96211.0,0.00015591]
[1763179822625,0.16115147,96212.0,96211.0,0.00015591]
[1763179824128,0.16215147,96212.0,96211.0,0.00015591]
[1763179824533,0.16215147,96212.0,96202.0,0.3608]
[1763179824534,0.04599,96203.0,96202.0,0.3608]
[1763179824832,0.04599,96192.0,96191.0,0.40562]
[1763179825440,0.04599,96192.0,96191.0,0.04482]
[1763179826034,0.15941504,96192.0,96191.0,0.04482]
[1763179827740,0.15580626,96201.0,96200.0,0.04314]
[1763179827930,0.04468591,96201.0,96200.0,0.04533803]
[1763179828135,0.15568743,96201.0,96200.0,0.04533803]
[1763179828840,0.15568743,96201.0,96200.0,0.02399803]
[1763179829343,0.16960743,96201.0,96200.0,0.02399803]
[1763179829932,0.16960743,96201.0,96200.0,0.00219803]
[1763179830138,0.16960743,96201.0,96177.0,0.3608]
[1763179830139,0.04453,96178.0,96177.0,0.0218]
[1763179830335,0.04453,96176.0,96175.0,0.00467895]
[1763179830934,0.04453,96176.0,96170.0,0.00219803]
[1763179831138,0.04453,96171.0,96170.0,0.04533803]
[1763179831440,0.04353,96171.0,96170.0,0.04533803]
[1763179833143,0.04453,96167.0,96166.0,0.00025997]
[1763179833342,0.40533,96167.0,96166.0,0.04339997]
[1763179833644,0.11186427,96167.0,96166.0,0.04339997]
[1763179833841,0.40533,96178.0,96177.0,0.04314]
[1763179834245,0.51719427,96178.0,96177.0,0.04314]
[1763179834443,0.47266427,96178.0,96168.0,0.04314]
[1763179834645,0.04453,96171.0,96170.0,0.00219803]
[1763179834941,0.1622455,96171.0,96170.0,0.00219803]
[1763179835655,0.04453,96167.0,96166.0,0.00025997]
[1763179835950,0.51995272,96167.0,96166.0,0.00025997]
[1763179836443,0.04453,96165.0,96160.0,0.00219803]
[1763179836851,0.15289216,96165.0,96160.0,0.00219803]
[1763179838045,0.15389216,96165.0,96160.0,0.00219803]
[1763179838842,0.15389216,96165.0,96136.0,0.37464]
[1763179838843,0.15489216,96165.0,96164.0,0.01116601]
[1763179844558,0.15489216,96165.0,96164.0,0.05430601]